bitfinex/quotes_ETHUSD_20250821
["timestamp","ask_amount","ask_price","bid_price","bid_amount"]
[1755784733748,0.50082839,4273.8,4272.8,0.02]
[1755784733953,0.50082839,4273.9,4272.9,0.0234033]
[1755784734153,3.0,4273.9,4272.8,0.02]
[1755784734377,0.52092933,4273.8,4272.8,0.24682]
[1755784734652,0.50082839,4273.8,4272.8,0.24682]
[1755784734852,0.02010094,4273.9,4272.8,0.24682]
[1755784735082,0.52097547,4273.9,4272.8,0.24682]
[1755784735286,0.02010094,4273.9,4272.8,0.24682]
[1755784735472,0.50087453,4274.2,4272.8,0.24682]
[1755784735473,0.02010094,4274.1,4272.8,0.02]
[1755784736065,0.52097547,4274.1,4272.8,0.02]
[1755784736854,0.4509,4274.0,4272.8,0.02]
[1755784737055,4.27910094,4273.9,4272.8,0.02]
[1755784737250,0.50087453,4273.8,4272.8,0.02]
[1755784737485,0.02010094,4273.7,4272.8,0.02]
[1755784737691,0.52097547,4273.7,4272.8,0.02]
[1755784738470,3.52097547,4273.7,4272.8,0.02]
[1755784738658,0.66,4273.5,4272.8,0.02]
[1755784738860,0.43819849,4273.4,4272.8,0.02]
[1755784739097,0.41809755,4273.4,4272.8,0.02]
[1755784739763,0.02010094,4273.3,4272.8,0.02]
[1755784740287,0.41809755,4273.4,4272.8,0.02]
[1755784740491,0.50087453,4273.6,4272.8,0.02]
[1755784740492,0.50087453,4273.6,4272.9,0.0234033]
[1755784740995,0.02010094,4273.7,4272.9,0.0234033]
[1755784741199,0.50184349,4273.7,4272.8,0.02]
[1755784741409,0.50184317,4274.1,4273.0,0.4482]
[1755784741579,0.50184317,4274.1,4272.8,0.02]
[1755784741580,0.02010094,4274.1,4272.8,0.02]
[1755784741764,0.02010094,4274.3,4272.9,0.302]
[1755784741966,0.02010094,4274.3,4272.8,0.02]
[1755784742410,0.02010094,4274.3,4272.9,0.0234033]
[1755784742720,0.50184317,4274.3,4272.9,0.6506253]
[1755784742876,0.002,4274.0,4272.9,0.4482]
[1755784743279,0.002,4274.0,4272.8,0.021]
[1755784743488,0.002,4274.0,4272.8,0.64048]
[1755784744306,0.002,4274.0,4272.8,0.021]
[1755784744514,0.002,4274.0,4272.8,0.19436681]
[1755784744515,0.02210094,4274.0,4272.8,0.19436681]
[1755784744714,0.02210094,4274.0,4272.8,0.021]
[1755784745185,0.4509,4273.9,4272.8,0.021]
[1755784745385,0.02010094,4273.8,4272.8,0.021]
[1755784746114,0.4509,4273.7,4272.8,0.021]
[1755784746317,0.02010094,4273.6,4272.8,0.021]
[1755784746529,0.68010094,4273.6,4272.8,0.021]
[1755784746820,0.3048,4272.9,4272.8,0.021]
[1755784746989,0.9648,4272.9,4272.8,0.021]
[1755784747189,5.01228094,4272.9,4272.8,0.021]
[1755784747405,5.49433014,4272.9,4272.8,0.021]
[1755784747604,4.95687814,4272.9,4272.8,0.021]
[1755784747818,4.73863014,4272.9,4272.8,0.021]
[1755784748161,5.82521908,4272.9,4272.8,0.021]
[1755784748304,6.66391104,4272.9,4272.8,0.021]
[1755784748646,5.82521908,4272.9,4272.8,0.021]
[1755784748838,8.16555,4272.9,4272.8,0.021]
[1755784749326,5.82521908,4272.9,4272.8,0.021]
[1755784750033,7.94730691,4272.9,4272.8,0.021]
[1755784750338,38.16620315,4272.9,4272.8,0.021]
[1755784750501,38.16620315,4272.9,4271.9,0.001]
[1755784750502,0.66,4272.8,4271.9,0.001]
[1755784750830,0.66,4272.0,4271.9,0.001]
[1755784751029,7.08394303,4272.0,4271.9,0.001]
[1755784751338,7.56599223,4272.0,4271.9,0.001]
[1755784751905,6.90599223,4272.0,4271.9,0.001]
[1755784752331,7.56599223,4272.0,4271.9,0.001]
[1755784752540,15.30679576,4272.0,4271.9,0.001]
[1755784753352,14.04642569,4272.0,4271.9,0.001]
[1755784753661,6.00087876,4271.9,4271.8,0.02]
[1755784753817,36.85271999,4271.9,4271.8,0.02]
[1755784754849,48.94540175,4271.9,4271.8,0.02]
[1755784755028,51.30754138,4271.9,4271.8,0.02]
[1755784755431,48.96666262,4271.9,4271.8,0.02]
[1755784755631,51.30754138,4271.9,4271.8,0.02]
[1755784756121,3.00115278,4271.4,4271.3,0.001]
[1755784756454,41.12588599,4271.4,4271.3,0.001]
[1755784756618,43.97170384,4271.4,4271.3,0.001]
[1755784756963,40.37395242,4271.4,4271.3,0.001]
[1755784757166,41.63001099,4271.4,4271.3,0.001]
[1755784757320,11.63001099,4271.4,4271.3,0.001]
[1755784757534,10.37395242,4271.4,4271.3,0.001]
[1755784757758,11.21112543,4271.4,4271.3,0.001]
[1755784758160,10.37395242,4271.4,4271.3,0.001]
[1755784759449,10.46015093,4271.4,4271.3,0.001]
[1755784759648,10.59085462,4271.4,4271.3,0.001]
[1755784760862,5.67785462,4271.4,4271.3,0.001]
[1755784761177,0.2178407,4271.4,4271.3,0.001]
[1755784777136,0.2170407,4271.4,4271.3,0.001]
[1755784785867,0.8770407,4271.4,4271.3,0.001]
[1755784786064,1.00835781,4271.4,4271.3,0.001]
[1755784786239,1.51502193,4271.4,4271.3,0.001]
[1755784786764,2.01712048,4271.4,4271.3,0.001]
[1755784786954,3.85617471,4271.4,4271.3,0.001]
[1755784787262,37.22695615,4271.4,4271.3,0.001]
[1755784787468,37.3383663,4271.4,4271.3,0.001]
[1755784787883,38.59442487,4271.4,4271.3,0.001]
[1755784789275,38.81352398,4271.4,4271.3,0.001]
[1755784790283,38.81341157,4271.4,4271.3,0.001]
[1755784790949,43.05441157,4271.4,4271.3,0.001]
[1755784791889,41.798353,4271.4,4271.3,0.001]
[1755784792748,43.05916992,4271.4,4271.3,0.001]
[1755784792998,41.798353,4271.4,4271.3,0.001]
[1755784793192,43.05879915,4271.4,4271.3,0.001]
[1755784793915,43.06079915,4271.4,4271.3,0.001]
[1755784795001,38.79720022,4271.4,4271.3,0.001]
[1755784795157,41.138353,4271.4,4271.3,0.001]
[1755784795360,39.45720022,4271.4,4271.3,0.001]
[1755784795596,38.79720022,4271.4,4271.3,0.001]
[1755784795877,41.138353,4271.4,4271.3,0.001]
[1755784796078,39.45720022,4271.4,4271.3,0.001]
[1755784796283,41.798353,4271.4,4271.3,0.001]
[1755784796579,39.45720022,4271.4,4271.3,0.001]
[1755784796876,41.79781001,4271.4,4271.3,0.001]
[1755784797249,34.55765723,4271.4,4271.3,0.001]
[1755784797445,39.63651348,4271.4,4271.3,0.001]
[1755784797679,4.55764635,4271.4,4271.3,0.001]
[1755784797981,9.47574729,4271.4,4271.3,0.001]
[1755784798174,4.07108317,4271.4,4271.3,0.001]
[1755784798373,8.30908317,4271.4,4271.3,0.001]
[1755784798999,8.96908317,4271.4,4271.3,0.001]
[1755784800004,8.96814823,4271.4,4271.3,0.001]
[1755784800214,1.07114823,4271.4,4271.3,0.001]
[1755784800398,0.2190407,4271.4,4271.3,0.001]
[1755784801114,8.1152407,4271.4,4271.3,0.001]
[1755784801310,5.50319481,4271.4,4271.3,0.001]
[1755784801509,9.74019481,4271.4,4271.3,0.001]
[1755784802288,9.74023026,4271.4,4271.3,0.001]
[1755784802488,40.58009739,4271.4,4271.3,0.001]
[1755784802699,40.58042156,4271.4,4271.3,0.001]
[1755784802903,39.74023026,4271.4,4271.3,0.001]
[1755784803087,9.73923026,4271.4,4271.3,0.001]
[1755784803304,3.85160619,4271.4,4271.3,0.001]
[1755784803851,0.2182407,4271.4,4271.3,0.001]
[1755784805435,3.8782407,4271.4,4271.3,0.001]
[1755784805721,0.2182407,4271.4,4271.3,0.001]
[1755784808018,3.2182407,4271.4,4271.3,0.001]
[1755784808214,0.23834164,4271.4,4271.3,0.001]
[1755784808429,0.2182407,4271.4,4271.3,0.001]
[1755784809003,0.23834164,4271.4,4271.3,0.001]
[1755784809324,0.2182407,4271.4,4271.3,0.7403]
[1755784810227,0.8782407,4271.4,4271.3,0.7403]
[1755784810441,1.84073058,4271.4,4271.3,0.7403]
[1755784811343,8.52640255,4271.4,4271.3,0.7403]
[1755784811525,37.66614434,4271.4,4271.3,0.7403]
[1755784811901,38.92659049,4271.4,4271.3,0.7403]
[1755784812326,3.00137204,4271.0,4270.8,0.021]
[1755784812629,0.66,4270.2,4269.8,0.02]
[1755784812836,0.66,4269.9,4269.8,0.02]
[1755784813000,6.33597323,4269.9,4269.8,0.02]
[1755784813346,55.29792828,4269.9,4269.8,0.02]
[1755784813546,55.29792828,4269.9,4267.8,0.02]
[1755784813547,0.66,4268.8,4267.8,0.02]
[1755784813695,18.92504896,4268.9,4267.8,0.02]
[1755784813696,18.26812166,4267.9,4267.8,0.02]
[1755784813903,58.15399395,4267.9,4267.8,0.02]
[1755784814212,55.18345713,4267.9,4267.8,0.02]
[1755784814417,60.48683131,4267.9,4267.8,0.02]
[1755784814653,60.4864941,4267.9,4267.8,0.02]
[1755784814946,3.66,4266.9,4266.8,0.02]
[1755784815101,58.37233077,4266.9,4266.8,0.02]
[1755784815699,60.65170415,4266.9,4266.8,0.02]
[1755784815900,0.66,4266.7,4265.8,0.02]
[1755784816122,18.92504896,4265.9,4265.8,0.02]
[1755784816322,40.63251107,4265.9,4265.8,0.02]
[1755784816524,40.41394562,4265.9,4265.8,0.02]
[1755784816723,42.9754645,4265.9,4265.8,0.02]
[1755784816946,38.76343292,4265.9,4265.8,0.02]
[1755784817245,42.77480861,4265.9,4265.8,0.02]
[1755784817448,12.55750155,4265.9,4265.8,0.02]
[1755784817738,0.66,4266.5,4265.8,0.02]
[1755784817936,0.02010094,4266.4,4265.8,0.02]
[1755784818303,4.231,4266.3,4265.8,0.02]
[1755784818534,3.02010094,4266.2,4265.8,0.02]
[1755784818746,0.66,4266.0,4265.8,0.02]
[1755784818949,8.45931103,4265.9,4265.8,0.02]
[1755784819105,3.0,4265.9,4265.8,0.02]
[1755784819304,3.02010094,4265.9,4265.8,0.02]
[1755784819540,4.231,4266.5,4265.8,0.02]
[1755784819709,0.02010094,4266.4,4265.8,0.02]
[1755784820230,3.66,4266.2,4265.8,0.02]
[1755784820430,3.66,4266.0,4265.8,0.02]
[1755784820742,31.11383256,4266.1,4265.8,0.02]
[1755784820743,25.02177075,4265.9,4265.8,0.02]
[1755784820909,25.00166981,4265.9,4265.8,0.02]
[1755784821239,55.00166981,4265.9,4265.8,0.02]
[1755784821842,42.84128353,4265.9,4265.8,0.02]
[1755784822047,42.84128353,4265.9,4265.3,0.001]
[1755784822048,3.004446,4265.4,4265.3,0.001]
[1755784822344,53.22004554,4265.4,4265.3,0.001]
[1755784822662,53.1999446,4265.4,4265.3,0.001]
[1755784823329,53.1999446,4265.4,4264.8,0.02]
[1755784823330,6.00472086,4264.9,4264.8,0.02]
[1755784823532,42.83995782,4264.9,4264.8,0.02]
[1755784823729,56.39839998,4264.9,4264.8,0.02]
[1755784824730,54.05555448,4264.9,4264.8,0.02]
[1755784824926,56.40027534,4264.9,4264.8,0.02]
[1755784826050,40.92943658,4264.9,4264.8,0.02]
[1755784826365,6.035,4264.9,4264.8,0.02]
[1755784826656,1.803,4264.9,4264.8,0.02]
[1755784826956,6.05510094,4264.9,4264.8,0.02]
[1755784827157,6.035,4264.9,4264.8,0.02]
[1755784827451,4.232,4265.0,4264.8,0.02]
[1755784827750,0.02010094,4264.9,4264.8,0.02]
[1755784828336,0.02010094,4265.5,4264.8,0.02]
[1755784828878,0.02,4266.8,4264.9,1.8274472]
[1755784829051,0.02,4266.8,4265.4,12.27898628]
[1755784829242,0.02,4266.8,4265.5,3.02344391]
[1755784829428,0.02,4266.8,4265.4,0.1176]
[1755784829626,0.02,4266.8,4264.9,1.804]
[1755784829825,0.02,4266.8,4265.3,0.66]
[1755784830025,0.02,4266.8,4266.4,12.16138628]
[1755784830271,0.02,4266.8,4266.7,2.34373168]
[1755784830442,0.02,4266.8,4266.5,1.9208]
[1755784830646,0.02,4266.8,4265.9,1.804]
[1755784831031,0.02,4266.8,4265.4,0.132]
[1755784831239,3.02,4266.8,4265.5,0.1936]
[1755784831567,3.02,4266.8,4264.8,0.02]
[1755784831568,3.0,4266.6,4264.8,0.02]
[1755784831741,0.68010094,4266.5,4264.8,0.02]
[1755784831940,0.02010094,4266.5,4264.9,1.804]
[1755784832153,0.02010094,4266.7,4264.9,1.804]
[1755784832354,0.02010094,4266.7,4265.0,0.1824]
[1755784832959,0.02010094,4266.7,4264.8,0.02]
[1755784833148,0.68010094,4266.7,4264.8,0.02]
[1755784833556,3.66,4266.5,4264.8,0.02]
[1755784833755,0.02010094,4266.4,4264.8,0.02]
[1755784833956,0.02010094,4266.7,4264.8,0.02]
[1755784834158,0.04010094,4266.8,4264.9,0.25993436]
[1755784834471,0.02,4266.8,4265.4,2.34439406]
[1755784834667,0.02,4266.8,4265.0,5.463]
[1755784834870,0.002,4267.7,4266.2,0.66]
[1755784835039,0.002,4267.7,4267.0,12.16138628]
[1755784835230,0.002,4267.7,4267.1,3.01913863]
[1755784835436,0.002,4267.7,4266.3,3.0]
[1755784835437,0.002,4267.7,4267.2,1.803]
[1755784835667,0.002,4267.7,4267.1,1.803]
[1755784835869,0.002,4267.7,4266.5,1.803]
[1755784835870,0.02210094,4267.7,4266.5,1.803]
[1755784836044,0.68210094,4267.7,4265.9,1.803]
[1755784836243,0.68210094,4267.7,4266.0,0.1803]
[1755784836457,0.68210094,4267.7,4266.1,0.02344061]
[1755784836657,0.66,4267.5,4266.0,0.1803]
[1755784836860,0.02010094,4267.4,4266.0,0.1803]
[1755784837059,0.02010094,4267.4,4265.9,1.803]
[1755784837438,0.02010094,4267.4,4265.3,1.803]
[1755784837647,0.66,4267.2,4265.3,1.803]
[1755784837852,0.66,4266.9,4264.8,0.02]
[1755784838047,3.66,4266.7,4264.9,0.0234472]
[1755784838262,1.53843676,4266.6,4264.8,0.02]
[1755784838437,1.04104974,4266.6,4264.9,0.0234472]
[1755784838641,1.04104974,4266.6,4264.8,0.02]
[1755784838943,0.002,4267.7,4265.2,12.16138628]
[1755784839143,0.02210094,4267.7,4265.8,0.02]
[1755784840097,3.66,4267.5,4265.8,0.02]
[1755784840245,0.66,4267.3,4265.8,0.02]
[1755784840445,0.02010094,4267.2,4265.8,0.02]
[1755784840649,0.11780533,4267.1,4265.8,0.02]
[1755784840892,0.02010094,4267.0,4265.8,0.02]
[1755784841055,0.02010094,4267.3,4265.8,0.02]
[1755784841253,0.66,4267.0,4265.8,0.02]
[1755784841563,2.34387282,4266.5,4265.8,0.02]
[1755784841764,0.02010094,4266.4,4265.8,0.02]
[1755784841951,0.02010094,4266.9,4265.8,0.02]
[1755784842156,0.02010094,4266.9,4265.9,0.02344171]
[1755784842376,0.02010094,4267.2,4266.0,0.02344116]
[1755784842562,0.66,4267.2,4265.8,0.02]
[1755784842771,0.66,4267.0,4265.8,0.02]
[1755784843001,1.803,4267.5,4265.8,0.02]
[1755784843002,0.51805327,4267.3,4265.8,0.02]
[1755784843167,0.02010094,4267.3,4265.8,0.02]
[1755784843980,0.66,4267.2,4265.8,0.02]
[1755784844150,0.66,4267.0,4265.8,0.02]
[1755784844345,0.02010094,4266.9,4265.8,0.02]
[1755784844545,1.25906007,4267.6,4265.8,0.02]
[1755784844546,0.8271681,4268.5,4266.3,3.0]
[1755784844747,0.002,4268.6,4267.1,3.0]
[1755784844946,1.25906007,4269.8,4267.0,12.16138628]
[1755784844947,0.704607,4270.2,4267.4,2.34334723]
[1755784845185,1.47730077,4271.4,4268.8,3.0]
[1755784845186,0.02010094,4271.0,4268.8,3.0]
[1755784845370,0.02010094,4271.3,4268.9,1.82642523]
[1755784845684,0.02010094,4271.3,4269.3,2.34225545]
[1755784845857,0.02010094,4271.3,4269.1,3.0]
[1755784846184,0.2182407,4271.4,4270.3,3.0]
[1755784846385,0.2182407,4271.4,4270.7,2.34153651]
[1755784846597,0.2182407,4271.4,4270.7,6.60895187]
[1755784846798,0.2182407,4271.4,4270.7,2.34153651]
[1755784847004,0.2182407,4271.4,4270.7,10.26895187]
[1755784847180,0.2182407,4271.4,4270.7,10.24553651]
[1755784847379,0.2182407,4271.4,4270.7,10.6299183]
[1755784847602,0.022,4271.8,4271.7,3.00098836]
[1755784847777,0.022,4271.8,4271.7,8.04351856]
[1755784847996,0.022,4271.8,4271.7,2.01912032]
[1755784848198,0.022,4271.8,4271.7,1.803]
[1755784848494,0.0212,4271.8,4271.7,8.1999149]
[1755784848864,0.002,4272.3,4272.2,3.00071438]
[1755784849165,0.002,4274.0,4273.4,2.34003521]
[1755784849364,0.002,4274.0,4273.6,3.66]
[1755784849612,0.002,4274.0,4273.7,0.87473824]
[1755784849930,0.002,4274.0,4273.7,9.57855505]
[1755784850278,0.002,4274.0,4273.7,3.0]
[1755784850477,0.002,4274.0,4273.5,1.803]
[1755784850687,0.002,4274.0,4273.6,0.02339947]
[1755784851091,0.002,4274.0,4273.6,0.68339947]
[1755784851290,0.002,4274.0,4273.7,0.7768]
[1755784851494,0.002,4274.0,4273.7,5.70871102]
[1755784851703,0.02,4274.8,4274.5,2.9994549]
[1755784851888,0.02,4274.8,4274.5,23.59302895]
[1755784852088,0.02,4274.8,4274.5,23.56963441]
[1755784852289,0.02,4274.8,4274.7,2.99934545]
[1755784852518,0.02,4274.8,4274.7,1.23128758]
[1755784852672,0.02,4274.8,4274.7,8.48228758]
[1755784852875,0.02,4274.8,4274.7,4.34808758]
[1755784853219,0.02,4274.8,4274.7,8.59908758]
[1755784853710,0.02,4274.8,4274.7,10.93843303]
[1755784853871,0.02,4274.8,4274.7,10.93543303]
[1755784854084,0.02,4275.8,4275.2,5.99907185]
[1755784854290,0.02,4275.8,4275.2,6.83289716]
[1755784854623,0.02,4275.8,4275.5,0.66]
[1755784854789,0.02,4275.8,4275.7,3.0]
[1755784855128,0.02,4275.8,4275.7,3.1168]
[1755784855286,0.02,4275.8,4275.7,8.0198]
[1755784855483,0.02,4275.8,4275.7,9.29818571]
[1755784856386,0.02,4277.8,4275.7,9.29818571]
[1755784856588,0.02,4277.8,4276.1,0.66]
[1755784856787,0.02,4277.8,4276.1,4.3558]
[1755784856992,0.02,4277.8,4276.1,4.239]
[1755784857221,0.02,4277.8,4276.1,4.92408758]
[1755784857524,0.02,4277.8,4276.1,3.68808758]
[1755784857926,0.02,4277.8,4276.1,3.57128758]
[1755784858114,0.02,4277.8,4276.1,10.81086712]
[1755784858311,0.02,4277.8,4276.1,8.47228758]
[1755784858624,0.02,4277.8,4276.1,3.0]
[1755784858829,0.02,4277.8,4276.1,7.241]
[1755784859001,0.02,4277.8,4276.1,7.24]
[1755784859645,0.02,4277.8,4276.1,3.0]
[1755784859787,0.02,4277.8,4276.1,8.03818579]
[1755784859988,0.02,4277.8,4276.1,4.15448661]
[1755784860203,0.02,4277.8,4275.6,1.801]
[1755784860405,0.66,4277.5,4275.6,1.801]
[1755784860688,0.02210094,4276.7,4275.6,1.801]
[1755784861304,0.02210094,4276.7,4275.7,4.239]
[1755784861533,3.0,4276.4,4274.9,1.8]
[1755784861717,0.02210094,4276.2,4274.8,1.8]
[1755784861930,0.02210094,4276.2,4274.9,4.238]
[1755784862134,0.02210094,4276.2,4275.0,0.02339181]
[1755784862307,0.002,4276.2,4275.0,0.02339181]
[1755784862512,0.002,4276.2,4275.1,0.66]
[1755784862750,0.002,4276.2,4275.3,0.1168]
[1755784863043,0.002,4276.2,4275.5,3.0]
[1755784863251,0.002,4276.2,4275.6,0.66]
[1755784863549,0.002,4276.2,4275.9,0.1168]
[1755784863849,0.002,4276.2,4276.0,4.26438634]
[1755784864051,0.002,4276.2,4276.1,5.99857954]
[1755784864347,0.002,4276.2,4276.1,0.21155913]
[1755784864512,0.002,4276.2,4276.1,4.239]
[1755784864709,0.002,4276.2,4276.1,4.241]
[1755784865146,0.002,4276.2,4273.7,11.39937951]
[1755784865350,0.002,4276.2,4275.5,0.21170158]
[1755784865552,0.002,4276.2,4275.6,0.21170158]
[1755784865847,0.002,4276.2,4274.8,0.02]
[1755784865848,0.66,4275.9,4274.8,0.02]
[1755784866160,3.0,4275.7,4274.8,0.02]
[1755784866467,0.002,4276.2,4274.8,0.02]
[1755784866615,0.002,4276.2,4274.9,0.02339236]
[1755784866969,0.002,4276.2,4274.8,0.02]
[1755784866970,0.002,4276.2,4275.0,0.21206488]
[1755784867176,0.002,4276.2,4274.8,0.02]
[1755784867177,0.002,4276.2,4275.1,4.37354232]
[1755784867457,0.002,4276.2,4275.2,0.64941911]
[1755784867613,0.002,4276.2,4275.2,4.26939071]
[1755784867949,0.002,4276.2,4275.2,4.246]
[1755784868152,0.002,4276.2,4275.1,1.799]
[1755784869032,0.02210094,4276.2,4275.1,1.799]
[1755784869234,0.002,4276.2,4275.2,0.02339071]
[1755784869434,0.002,4276.2,4275.3,0.18223907]
[1755784869677,0.002,4276.2,4275.4,4.27538962]
[1755784869827,0.002,4276.2,4275.4,4.252]
[1755784870170,0.002,4276.2,4275.5,0.68429269]
[1755784870371,0.002,4276.2,4275.8,2.338732]
[1755784870665,0.002,4276.2,4275.9,0.21260362]
[1755784870876,0.002,4276.2,4275.3,6.053]
[1755784871156,0.02210094,4276.2,4275.4,0.21348866]
[1755784871354,0.002,4276.2,4275.5,0.21348866]
[1755784871555,0.002,4276.2,4275.6,0.21348866]
[1755784871756,0.002,4276.2,4275.7,0.21353464]
[1755784871970,0.002,4276.2,4275.8,0.21353464]
[1755784872280,0.0012,4276.2,4275.9,0.49215578]
[1755784872577,0.02,4277.8,4276.5,4.6767216]
[1755784872728,0.02,4277.8,4276.7,3.66]
[1755784872929,0.02,4277.8,4277.5,2.33776908]
[1755784873278,0.02,4277.8,4277.7,2.33770484]
[1755784873566,0.02,4277.8,4277.7,7.30798238]
[1755784873779,0.002,4279.5,4278.6,2.3371818]
[1755784873780,0.002,4278.7,4278.6,2.3371818]
[1755784873930,0.002,4279.5,4278.7,2.99715848]
[1755784874261,0.002,4279.5,4279.2,5.99688539]
[1755784874562,0.002,4279.5,4279.2,6.21042003]
[1755784874768,0.3164,4280.5,4279.2,4.47253464]
[1755784875061,0.3164,4280.5,4279.3,0.23690294]
[1755784875362,0.3164,4281.2,4279.4,2.01253464]
[1755784875536,0.02010094,4281.1,4279.5,0.21353464]
[1755784875871,0.3164,4281.0,4279.6,4.258]
[1755784876031,0.3164,4281.6,4279.7,2.35992854]
[1755784876357,0.02,4281.8,4279.9,0.66]
[1755784876527,0.02,4281.8,4280.0,1.73582144]
[1755784876730,0.02,4281.8,4280.4,2.33621365]
[1755784876966,0.02,4281.8,4280.3,3.0]
[1755784876967,0.3164,4281.7,4280.5,6.067]
[1755784877152,0.02010094,4281.6,4280.5,1.799]
[1755784877323,0.02010094,4281.6,4279.2,0.4007]
[1755784877324,0.66,4281.4,4279.8,1.798]
[1755784877529,0.66,4281.2,4279.8,1.798]
[1755784877770,0.16565009,4281.1,4279.9,4.29236503]
[1755784877953,0.02010094,4281.7,4279.9,4.269]
[1755784878468,0.02,4281.8,4280.2,0.1168]
[1755784878640,0.02,4281.8,4280.4,0.66]
[1755784878845,0.02,4281.8,4280.0,1.1083]
[1755784878846,0.02,4281.8,4280.1,0.66]
[1755784879040,0.02,4281.8,4280.3,3.1168]
[1755784879365,0.02,4281.8,4280.2,0.83773]
[1755784879579,0.02,4281.8,4280.4,0.66]
[1755784879777,0.02,4281.8,4281.2,0.1168]
[1755784879933,0.02,4281.8,4281.3,6.07]
[1755784880644,0.02,4281.8,4281.3,1.798]
[1755784881035,0.33650094,4281.7,4281.3,1.798]
[1755784881262,0.3164,4281.6,4281.3,1.798]
[1755784881486,0.02,4281.8,4281.3,1.798]
[1755784881769,0.02,4281.8,4281.4,0.5651]
[1755784881929,0.02,4281.8,4281.6,2.33556119]
[1755784882130,0.02,4281.8,4281.7,2.35887613]
[1755784882381,0.02,4281.8,4281.7,6.01887613]
[1755784882534,0.02,4281.8,4281.7,3.4483]
[1755784882731,0.02,4281.8,4281.7,0.1168]
[1755784882957,0.02,4281.8,4281.7,4.271]
[1755784883472,0.02,4281.8,4281.7,4.2943552]
[1755784883647,0.02,4281.8,4281.7,4.27]
[1755784883844,0.3104,4283.0,4281.3,1.798]
[1755784884164,0.04010094,4283.8,4281.7,0.0233552]
[1755784884371,0.04010094,4283.8,4281.9,0.66]
[1755784884372,0.02,4283.8,4281.9,0.66]
[1755784884554,0.02,4283.8,4282.4,0.1168]
[1755784884756,0.02,4283.8,4282.5,1.797]
[1755784885470,0.02010094,4283.7,4282.6,0.0233503]
[1755784885682,0.68010094,4283.7,4282.5,1.797]
[1755784885875,0.3045,4283.6,4282.5,1.797]
[1755784886033,0.02010094,4283.5,4282.5,1.797]
[1755784886435,0.66,4283.3,4281.8,6.065]
[1755784886737,0.32460094,4283.2,4281.9,0.02335411]
[1755784886938,0.32460094,4283.2,4281.7,4.269]
[1755784887172,0.66,4283.1,4281.8,1.797]
[1755784887338,0.66,4282.9,4281.8,4.269]
[1755784887541,0.66,4283.1,4281.7,1.797]
[1755784887542,0.66,4282.7,4281.7,1.797]
[1755784887739,0.66,4282.5,4281.8,0.02]
[1755784888045,2.99541184,4281.9,4281.8,0.0169]
[1755784888256,5.99541184,4281.9,4281.8,0.0169]
[1755784888582,0.66,4281.8,4280.8,0.02]
[1755784888875,0.64811106,4281.7,4280.8,0.02]
[1755784889084,0.02010094,4281.7,4280.8,0.02]
[1755784889678,0.30480094,4282.5,4280.9,4.29235957]
[1755784889982,0.30480094,4282.5,4280.9,4.269]
[1755784890147,0.02010094,4282.9,4281.0,0.4289]
[1755784890353,3.0,4282.4,4280.8,0.02]
[1755784890548,0.02010094,4282.3,4280.8,0.02]
[1755784890754,0.2847,4282.2,4280.8,0.02]
[1755784891079,1.797,4283.3,4280.8,0.02]
[1755784891235,0.2847,4282.3,4280.8,0.02]
[1755784891440,0.02010094,4282.2,4280.9,4.29135957]
[1755784891667,0.02010094,4282.6,4280.9,4.268]
[1755784891896,0.02010094,4282.6,4281.0,4.269]
[1755784892079,0.02010094,4282.8,4281.0,4.269]
[1755784892279,0.02010094,4283.1,4281.1,0.90055848]
[1755784892478,0.02210094,4283.4,4281.4,0.1168]
[1755784892682,0.02210094,4283.4,4281.5,2.2453]
[1755784893086,0.002,4283.4,4281.6,1.13165575]
[1755784893281,0.002,4283.4,4282.4,0.1168]
[1755784893482,0.002,4283.4,4282.5,6.08935084]
[1755784893722,0.02,4282.8,4282.7,0.1168]
[1755784894165,0.02,4282.8,4282.7,4.3858]
[1755784894365,0.02,4282.8,4282.7,4.85744975]
[1755784894599,0.02,4282.8,4282.7,4.8341]
[1755784895504,0.02,4282.8,4282.7,2.90007559]
[1755784895799,0.02,4282.8,4282.7,4.8321]
[1755784896098,0.0192,4282.8,4282.0,2.33530566]
[1755784896296,0.0192,4282.8,4282.0,4.264]
[1755784896598,0.0192,4282.8,4282.1,0.02335302]
[1755784896798,0.0192,4282.8,4281.8,0.02]
[1755784897001,0.0192,4282.8,4282.0,4.28]
[1755784897213,0.0192,4282.8,4282.1,4.279]
[1755784898000,0.2847,4284.5,4282.2,0.48315248]
[1755784898199,0.02010094,4284.4,4282.3,2.45194924]
[1755784898500,0.2847,4284.5,4282.5,2.33503205]
[1755784898662,0.02,4284.8,4282.8,0.1168]
[1755784898867,0.02,4284.8,4282.9,0.61998]
[1755784899504,0.02,4284.8,4283.1,2.33472618]
[1755784899838,0.02,4284.8,4283.2,0.02334703]
[1755784899995,0.02,4284.8,4283.4,2.33459401]
[1755784900179,0.02,4284.8,4283.2,0.4598]
[1755784900180,0.02,4284.8,4283.6,3.0]
[1755784900375,0.02,4284.8,4284.0,0.66]